fUST/lending_fUST_20250723
["ID","MTS","AMOUNT","RATE_DAILY","PERIOD"]
[374168151,1753236638982,-1648.76776359,0.00016784,2]
[374168153,1753236638995,-382.86383574,0.00016784,2]
[374168155,1753236639004,-52.13616426,0.00016784,2]
[374168202,1753236639726,-753.23383574,0.00016784,2]
[374168204,1753236639735,-1065.45,0.00016784,2]
[374168206,1753236639745,-1561.12,0.00016784,2]
[374168208,1753236639754,-655.27,0.00016785,2]
[374168210,1753236639764,-250.65120262,0.00016957,2]
[374168212,1753236639773,-464.11306938,0.00017056,2]
[374168214,1753236639782,-460.0,0.00017056,2]
[374168216,1753236639791,-460.0,0.00017056,2]
[374168218,1753236639800,-1024.07,0.00017056,2]
[374168220,1753236639810,-460.0,0.00017056,2]
[374168222,1753236639819,-460.0,0.00017056,2]
[374168224,1753236639828,-460.0,0.00017056,2]
[374168226,1753236639837,-460.0,0.00017057,2]
[374168228,1753236639847,-460.0,0.00017057,2]
[374168230,1753236639856,-184.86463579,0.00017057,2]
[374168232,1753236639866,-460.0,0.00017057,2]
[374168233,1753236639875,-460.0,0.00017057,2]
[374168235,1753236639885,-372.91741577,0.00017057,2]
[374168239,1753236639895,-460.0,0.00017057,2]
[374168241,1753236639904,-460.0,0.00017057,2]
[374168243,1753236639914,-460.0,0.00017057,2]
[374168245,1753236639923,-460.0,0.00017057,2]
[374168247,1753236639934,-1382.84,0.00017057,2]
[374168250,1753236639945,-460.0,0.00017057,2]
[374168252,1753236639954,-460.0,0.00017057,2]
[374168253,1753236639964,-460.0,0.00017057,2]
[374168255,1753236639973,-460.0,0.00017057,2]
[374168257,1753236639982,-460.0,0.00017057,2]
[374168259,1753236639992,-460.0,0.00017057,2]
[374168261,1753236640001,-1310.89,0.00017057,2]
[374168264,1753236640017,-460.0,0.00017057,2]
[374168267,1753236640031,-946.48,0.00017057,2]
[374168269,1753236640042,-460.0,0.00017057,2]
[374168272,1753236640053,-460.0,0.00017057,2]
[374168274,1753236640063,-460.0,0.00017057,2]
[374168276,1753236640073,-460.0,0.00017057,2]
[374168278,1753236640083,-460.0,0.00017057,2]
[374168280,1753236640093,-2444.14,0.00017058,2]
[374168283,1753236640103,-805.37,0.00017058,2]
[374168286,1753236640113,-1065.45,0.00017058,2]
[374168289,1753236640123,-1561.12,0.00017058,2]
[374168291,1753236640132,-465.56246254,0.0001706,2]
[374168294,1753236640142,-467.34993638,0.0001706,2]
[374168297,1753236640152,-460.0,0.0001706,2]
[374168300,1753236640162,-460.0,0.0001706,2]
[374168304,1753236640172,-461.28163295,0.0001706,2]
[374168306,1753236640182,-463.0861704,0.0001706,2]
[374168308,1753236640191,-460.0,0.0001706,2]
[374168310,1753236640201,-460.0,0.0001706,2]
[374168312,1753236640211,-461.42982372,0.0001706,2]
[374168314,1753236640221,-463.35343427,0.0001706,2]
[374168316,1753236640231,-462.20978978,0.0001706,2]
[374168318,1753236640245,-463.32085713,0.0001706,2]
[374168320,1753236640255,-460.0,0.0001706,2]
[374168322,1753236640265,-3151.94,0.0001706,2]
[374168324,1753236640274,-460.0,0.0001706,2]
[374168326,1753236640285,-460.0,0.0001706,2]
[374168328,1753236640294,-460.0,0.0001706,2]
[374168330,1753236640304,-241.51258533,0.0001706,2]
[374168332,1753236640315,-460.0,0.0001706,2]
[374168334,1753236640326,-460.0,0.0001706,2]
[374168336,1753236640336,-462.09466927,0.0001706,2]
[374168338,1753236640345,-465.1061167,0.0001706,2]
[374168340,1753236640355,-465.70748847,0.0001706,2]
[374168342,1753236640365,-460.0,0.0001706,2]
[374168344,1753236640374,-460.0,0.0001706,2]
[374168346,1753236640383,-462.76894224,0.0001706,2]
[374168348,1753236640394,-460.0,0.0001706,2]
[374168350,1753236640403,-500.0,0.0001706,2]
[374168352,1753236640413,-460.0,0.0001706,2]
[374168354,1753236640423,-460.0,0.0001706,2]
[374168356,1753236640433,-387.67244614,0.0001706,2]
[374168358,1753236640442,-460.0,0.0001706,2]
[374168360,1753236640452,-460.0,0.0001706,2]
[374168362,1753236640461,-1209.66,0.0001706,2]
[374168364,1753236640471,-352.79934772,0.0001706,2]
[374168366,1753236640480,-460.0,0.0001706,2]
[374168368,1753236640490,-505.65478194,0.0001706,2]
[374168370,1753236640499,-460.0,0.0001706,2]
[374168372,1753236640509,-456.10738143,0.0001706,2]
[374168374,1753236640518,-461.44831635,0.0001706,2]
[374168376,1753236640528,-460.0,0.0001706,2]
[374168378,1753236640545,-463.58167317,0.0001706,2]
[374168380,1753236640554,-460.0,0.0001706,2]
[374168382,1753236640563,-467.2752125,0.0001706,2]
[374168384,1753236640574,-460.0,0.0001706,2]
[374168386,1753236640584,-460.0,0.0001706,2]
[374168388,1753236640594,-456.66467324,0.0001706,2]
[374168390,1753236640603,-462.66835996,0.0001706,2]
[374168392,1753236640613,-464.29084928,0.0001706,2]
[374168394,1753236640622,-464.13049068,0.0001706,2]
[374168396,1753236640632,-460.0,0.0001706,2]
[374168398,1753236640642,-460.0,0.0001706,2]
[374168400,1753236640651,-460.0,0.0001706,2]
[374168401,1753236640661,-460.0,0.0001706,2]
[374168403,1753236640670,-460.0,0.0001706,2]
[374168405,1753236640679,-460.0,0.0001706,2]
[374168407,1753236640689,-460.0,0.0001706,2]
[374168409,1753236640698,-460.0,0.0001706,2]
[374168410,1753236640707,-460.0,0.0001706,2]
[374168411,1753236640716,-460.0,0.0001706,2]
[374168412,1753236640726,-460.0,0.0001706,2]
[374168413,1753236640735,-460.08007497,0.0001706,2]
[374168414,1753236640745,-460.0,0.0001706,2]
[374168415,1753236640754,-460.0,0.0001706,2]
[374168416,1753236640764,-904.4,0.0001706,2]
[374168417,1753236640773,-460.0,0.0001706,2]
[374168418,1753236640782,-460.0,0.0001706,2]
[374168419,1753236640792,-460.0,0.0001706,2]
[374168420,1753236640802,-460.0,0.0001706,2]
[374168421,1753236640811,-460.7104141,0.0001706,2]
[374168422,1753236640822,-460.0,0.0001706,2]
[374168423,1753236640831,-460.0,0.0001706,2]
[374168424,1753236640840,-460.0,0.0001706,2]
[374168425,1753236640849,-461.45222407,0.0001706,2]
[374168426,1753236640859,-460.0,0.0001706,2]
[374168427,1753236640869,-460.0,0.0001706,2]
[374168428,1753236640878,-462.88957301,0.0001706,2]
[374168429,1753236640888,-460.0,0.0001706,2]
[374168430,1753236640898,-460.0,0.0001706,2]
[374168431,1753236640907,-521.57,0.0001706,2]
[374168432,1753236640916,-460.0,0.0001706,2]
[374168433,1753236640926,-247.77219375,0.0001706,2]
[374168434,1753236640935,-458.51261916,0.0001706,2]
[374168435,1753236640944,-973.72,0.0001706,2]
[374168436,1753236640953,-488.61964118,0.00017061,2]
[374168437,1753236640963,-606.61,0.00017061,2]
[374168438,1753236640972,-470.39,0.00017061,2]
[374168439,1753236640982,-460.0,0.00017061,2]
[374168440,1753236640992,-460.0,0.0001733,2]
[374168441,1753236641001,-460.0,0.0001733,2]
[374168442,1753236641011,-1024.07,0.0001733,2]
[374168443,1753236641024,-600.70191841,0.0001733,2]
[374168444,1753236641034,-259.37276609,0.0001733,2]
[374168445,1753236641045,-548.99440027,0.0001733,2]
[374168446,1753236641054,-197.80405836,0.0001733,2]
[374168447,1753236641064,-177.88338228,0.0001733,2]
[374168448,1753236641073,-525.66465588,0.0001733,2]
[374168449,1753236641084,-258.78862582,0.0001733,2]
[374168450,1753236641093,-460.0,0.00017331,2]
[374168451,1753236641102,-460.0,0.00017331,2]
[374168452,1753236641112,-460.0,0.00017331,2]
[374168453,1753236641121,-467.36,0.00017331,2]
[374168454,1753236641131,-460.0,0.00017331,2]
[374168455,1753236641142,-460.0,0.00017331,2]
[374168456,1753236641151,-1382.84,0.00017331,2]
[374168457,1753236641161,-460.0,0.00017331,2]
[374168458,1753236641170,-460.0,0.00017331,2]
[374168459,1753236641180,-460.0,0.00017331,2]
[374168460,1753236641190,-460.0,0.00017331,2]
[374168461,1753236641199,-460.0,0.00017331,2]
[374168462,1753236641208,-475.39,0.00017331,2]
[374168463,1753236641217,-1310.89,0.00017331,2]
[374168464,1753236641227,-460.0,0.00017331,2]
[374168465,1753236641237,-946.48,0.00017331,2]
[374168466,1753236641251,-460.0,0.00017331,2]
[374168467,1753236641261,-460.0,0.00017331,2]
[374168468,1753236641270,-460.0,0.00017331,2]
[374168470,1753236641280,-460.0,0.00017331,2]
[374168472,1753236641290,-460.0,0.00017331,2]
[374168473,1753236641301,-2444.14,0.00017332,2]
[374168474,1753236641311,-805.37,0.00017332,2]
[374168475,1753236641322,-1065.45,0.00017332,2]
[374168476,1753236641331,-460.0,0.00017334,2]
[374168477,1753236641340,-460.0,0.00017334,2]
[374168478,1753236641350,-3151.94,0.00017334,2]
[374168479,1753236641359,-460.0,0.00017334,2]
[374168480,1753236641368,-460.0,0.00017334,2]
[374168481,1753236641379,-460.0,0.00017334,2]
[374168482,1753236641393,-460.0,0.00017334,2]
[374168483,1753236641403,-460.0,0.00017334,2]
[374168484,1753236641413,-460.0,0.00017334,2]
[374168485,1753236641422,-1209.66,0.00017334,2]
[374168486,1753236641432,-460.0,0.00017334,2]
[374168487,1753236641441,-460.0,0.00017334,2]
[374168488,1753236641450,-460.0,0.00017334,2]
[374168489,1753236641460,-460.0,0.00017334,2]
[374168491,1753236641469,-460.0,0.00017334,2]
[374168492,1753236641478,-460.0,0.00017334,2]
[374168494,1753236641487,-460.0,0.00017334,2]
[374168496,1753236641496,-410.0,0.00017334,2]
[374168498,1753236641506,-440.0,0.00017334,2]
[374168500,1753236641516,-460.0,0.00017334,2]
[374168502,1753236641526,-460.0,0.00017334,2]
[374168504,1753236641535,-460.0,0.00017334,2]
[374168506,1753236641545,-460.0,0.00017334,2]
[374168508,1753236641555,-460.0,0.00017334,2]
[374168510,1753236641564,-460.0,0.00017334,2]
[374168512,1753236641574,-460.0,0.00017334,2]
[374168514,1753236641583,-460.0,0.00017334,2]
[374168516,1753236641596,-460.0,0.00017334,2]
[374168518,1753236641605,-904.4,0.00017334,2]
[374168520,1753236641614,-460.0,0.00017334,2]
[374168522,1753236641623,-460.0,0.00017334,2]
[374168524,1753236641633,-460.0,0.00017334,2]
[374168526,1753236641642,-460.0,0.00017334,2]
[374168528,1753236641651,-460.0,0.00017334,2]
[374168530,1753236641660,-460.0,0.00017334,2]
[374168532,1753236641669,-460.0,0.00017334,2]
[374168534,1753236641679,-521.57,0.00017334,2]
[374168536,1753236641688,-460.0,0.00017334,2]
[374168538,1753236641697,-460.0,0.00017334,2]
[374168540,1753236641706,-973.72,0.00017334,2]
[374168542,1753236641716,-606.61,0.00017335,2]
[374168544,1753236641725,-470.39,0.00017335,2]
[374168546,1753236641734,-460.0,0.00017335,2]
[374168547,1753236641743,-460.0,0.00017604,2]
[374168549,1753236641753,-460.0,0.00017604,2]
[374168551,1753236641762,-1024.07,0.00017604,2]
[374168553,1753236641772,-460.0,0.00017605,2]
[374168555,1753236641781,-460.0,0.00017605,2]
[374168557,1753236641790,-460.0,0.00017605,2]
[374168559,1753236641799,-460.0,0.00017605,2]
[374168561,1753236641808,-1382.84,0.00017605,2]
[374168562,1753236641817,-460.0,0.00017605,2]
[374168564,1753236641826,-460.0,0.00017605,2]
[374168566,1753236641836,-460.0,0.00017605,2]
[374168568,1753236641845,-460.0,0.00017605,2]
[374168570,1753236641854,-1310.89,0.00017605,2]
[374168572,1753236641863,-460.0,0.00017605,2]
[374168574,1753236641872,-946.48,0.00017605,2]
[374168576,1753236641881,-460.0,0.00017605,2]
[374168578,1753236641891,-460.0,0.00017605,2]
[374168580,1753236641900,-460.0,0.00017605,2]
[374168582,1753236641909,-2444.14,0.00017606,2]
[374168584,1753236641919,-805.37,0.00017606,2]
[374168586,1753236641927,-1065.45,0.00017606,2]
[374168588,1753236641937,-460.0,0.00017608,2]
[374168590,1753236641946,-460.0,0.00017608,2]
[374168592,1753236641955,-3151.94,0.00017608,2]
[374168594,1753236641964,-460.0,0.00017608,2]
[374168596,1753236641974,-460.0,0.00017608,2]
[374168598,1753236641983,-460.0,0.00017608,2]
[374168600,1753236641992,-422.22962114,0.00017608,2]
[374168602,1753236642002,-1209.66,0.00017608,2]
[374168604,1753236642011,-460.0,0.00017608,2]
[374168606,1753236642020,-460.0,0.00017608,2]
[374168608,1753236642029,-460.0,0.00017608,2]
[374168610,1753236642038,-460.0,0.00017608,2]
[374168612,1753236642049,-460.0,0.00017608,2]
[374168614,1753236642058,-460.0,0.00017608,2]
[374168616,1753236642067,-460.0,0.00017608,2]
[374168618,1753236642076,-460.0,0.00017608,2]
[374168620,1753236642085,-460.0,0.00017608,2]
[374168622,1753236642094,-460.0,0.00017608,2]
[374168624,1753236642103,-460.0,0.00017608,2]
[374168625,1753236642113,-460.0,0.00017608,2]
[374168628,1753236642123,-460.0,0.00017608,2]
[374168630,1753236642132,-904.4,0.00017608,2]
[374168632,1753236642141,-460.0,0.00017608,2]
[374168634,1753236642150,-460.0,0.00017608,2]
[374168636,1753236642160,-460.0,0.00017608,2]
[374168638,1753236642169,-460.0,0.00017608,2]
[374168640,1753236642179,-460.0,0.00017608,2]
[374168642,1753236642188,-460.0,0.00017608,2]
[374168644,1753236642198,-460.0,0.00017608,2]
[374168645,1753236642208,-521.57,0.00017608,2]
[374168647,1753236642217,-460.0,0.00017608,2]
[374168649,1753236642226,-460.0,0.00017608,2]
[374168651,1753236642236,-973.72,0.00017608,2]
[374168653,1753236642250,-606.61,0.00017609,2]
[374168655,1753236642260,-470.39,0.00017609,2]
[374168657,1753236642270,-460.0,0.00017609,2]
[374168659,1753236642279,-460.0,0.00017878,2]
[374168661,1753236642290,-460.0,0.00017878,2]
[374168663,1753236642301,-1024.07,0.00017878,2]
[374168665,1753236642311,-460.0,0.00017879,2]
[374168667,1753236642321,-460.0,0.00017879,2]
[374168681,1753236642425,-460.0,0.00017879,2]
[374168683,1753236642446,-1382.84,0.00017879,2]
[374168685,1753236642455,-460.0,0.00017879,2]
[374168687,1753236642464,-460.0,0.00017879,2]
[374168689,1753236642473,-559.42,0.00017879,2]
[374168691,1753236642482,-1310.89,0.00017879,2]
[374168693,1753236642492,-460.0,0.00017879,2]
[374168695,1753236642501,-946.48,0.00017879,2]
[374168697,1753236642510,-460.0,0.00017879,2]
[374168699,1753236642520,-460.0,0.00017879,2]
[374168701,1753236642529,-460.0,0.00017879,2]
[374168703,1753236642538,-2444.14,0.0001788,2]
[374168705,1753236642549,-805.37,0.0001788,2]
[374168707,1753236642557,-1065.45,0.0001788,2]
[374168709,1753236642567,-460.0,0.00017882,2]
[374168711,1753236642576,-3151.94,0.00017882,2]
[374168713,1753236642584,-228.12,0.00017882,2]
[374168715,1753236642593,-460.0,0.00017882,2]
[374168717,1753236642602,-460.0,0.00017882,2]
[374168719,1753236642611,-460.0,0.00017882,2]
[374168721,1753236642620,-460.0,0.00017882,2]
[374168723,1753236642629,-460.0,0.00017882,2]
[374168725,1753236642639,-460.0,0.00017882,2]
[374168727,1753236642648,-460.0,0.00017882,2]
[374168729,1753236642657,-460.0,0.00017882,2]
[374168731,1753236642666,-431.51,0.00017882,2]
[374168733,1753236642675,-460.0,0.00017882,2]
[374168735,1753236642684,-153.97,0.00017882,2]
[374168737,1753236642694,-460.0,0.00017882,2]
[374168739,1753236642703,-460.0,0.00017882,2]
[374168741,1753236642712,-460.0,0.00017882,2]
[374168743,1753236642721,-460.0,0.00017882,2]
[374168745,1753236642730,-904.4,0.00017882,2]
[374168747,1753236642740,-460.0,0.00017882,2]
[374168749,1753236642749,-460.0,0.00017882,2]
[374168751,1753236642758,-460.0,0.00017882,2]
[374168753,1753236642766,-460.0,0.00017882,2]
[374168755,1753236642775,-460.0,0.00017882,2]
[374168757,1753236642784,-460.0,0.00017882,2]
[374168759,1753236642793,-460.0,0.00017882,2]
[374168761,1753236642802,-460.0,0.00017882,2]
[374168763,1753236642812,-521.57,0.00017882,2]
[374168765,1753236642821,-460.0,0.00017882,2]
[374168767,1753236642831,-485.5331683,0.00017882,2]
[374168769,1753236642840,-973.72,0.00017882,2]
[374168771,1753236642849,-606.61,0.00017883,2]
[374168773,1753236642858,-470.39,0.00017883,2]
[374168775,1753236642867,-460.0,0.00017883,2]
[374168777,1753236642876,-655.27,0.00017899,2]
[374168779,1753236642886,-3811.53480354,0.000179,2]
[374168781,1753236642895,-500.0,0.0001798,2]
[374168782,1753236642904,-500.0,0.00018019,2]
[374168784,1753236642913,-500.0,0.00018112,2]
[374168786,1753236642922,-184.88570209,0.00018112,2]
[374168788,1753236642932,-250.65120256,0.00018113,2]
[374168790,1753236642941,-239.85,0.00018146,3]
[374168792,1753236642950,-719.57,0.00018146,3]
[374168794,1753236642959,-387.30661071,0.00018152,2]
[374168796,1753236642968,-460.0,0.00018152,2]
[374168798,1753236642977,-1024.07,0.00018152,2]
[374168800,1753236642986,-460.0,0.00018153,2]
[374168802,1753236642995,-460.0,0.00018153,2]
[374168804,1753236643004,-1382.84,0.00018153,2]
[374168806,1753236643013,-460.0,0.00018153,2]
[374168808,1753236643023,-460.0,0.00018153,2]
[374168810,1753236643032,-1310.89,0.00018153,2]
[374168812,1753236643041,-460.0,0.00018153,2]
[374168814,1753236643051,-946.48,0.00018153,2]
[374168816,1753236643061,-460.0,0.00018153,2]
[374168818,1753236643070,-460.0,0.00018153,2]
[374168820,1753236643079,-460.0,0.00018153,2]
[374168822,1753236643089,-2444.14,0.00018154,2]
[374168824,1753236643099,-805.37,0.00018154,2]
[374168826,1753236643107,-1065.45,0.00018154,2]
[374168828,1753236643117,-460.0,0.00018156,2]
[374168830,1753236643126,-3151.94,0.00018156,2]
[374168832,1753236643135,-460.0,0.00018156,2]
[374168834,1753236643144,-439.77,0.00018156,2]
[374168836,1753236643154,-460.0,0.00018156,2]
[374168838,1753236643164,-460.0,0.00018156,2]
[374168840,1753236643172,-460.0,0.00018156,2]
[374168842,1753236643181,-460.0,0.00018156,2]
[374168844,1753236643190,-460.0,0.00018156,2]
[374168846,1753236643199,-460.0,0.00018156,2]
[374168848,1753236643208,-220.24114517,0.00018156,2]
[374168850,1753236643217,-460.0,0.00018156,2]
[374168852,1753236643226,-460.0,0.00018156,2]
[374168854,1753236643235,-460.0,0.00018156,2]
[374168856,1753236643249,-904.4,0.00018156,2]
[374168857,1753236643258,-460.0,0.00018156,2]
[374168858,1753236643267,-460.0,0.00018156,2]
[374168859,1753236643276,-460.0,0.00018156,2]
[374168860,1753236643286,-460.0,0.00018156,2]
[374168861,1753236643296,-460.0,0.00018156,2]
[374168862,1753236643305,-460.0,0.00018156,2]
[374168863,1753236643316,-460.0,0.00018156,2]
[374168864,1753236643324,-521.57,0.00018156,2]
[374168865,1753236643333,-460.0,0.00018156,2]
[374168866,1753236643342,-973.72,0.00018156,2]
[374168867,1753236643351,-606.61,0.00018157,2]
[374168868,1753236643360,-470.39,0.00018157,2]
[374168869,1753236643369,-460.0,0.00018157,2]
[374168870,1753236643378,-3811.53480332,0.00018176,2]
[374168871,1753236643386,-160.0,0.00018318,2]
[374168872,1753236643395,-309.68019689,0.00018426,2]
[374168873,1753236643404,-1024.07,0.00018426,2]
[374168874,1753236643413,-460.0,0.00018427,2]
[374168875,1753236643422,-460.0,0.00018427,2]
[374168876,1753236643431,-1382.84,0.00018427,2]
[374168877,1753236643440,-460.0,0.00018427,2]
[374168878,1753236643449,-460.0,0.00018427,2]
[374168879,1753236643458,-1310.89,0.00018427,2]
[374168880,1753236643467,-946.48,0.00018427,2]
[374168881,1753236643476,-460.0,0.00018427,2]
[374168882,1753236643485,-460.0,0.00018427,2]
[374168884,1753236643493,-460.0,0.00018427,2]
[374168886,1753236643503,-2444.14,0.00018428,2]
[374168888,1753236643512,-805.37,0.00018428,2]
[374168890,1753236643522,-1065.45,0.00018428,2]
[374168892,1753236643531,-460.0,0.0001843,2]
[374168894,1753236643540,-3151.94,0.0001843,2]
[374168896,1753236643551,-460.0,0.0001843,2]
[374168898,1753236643561,-1209.66,0.0001843,2]
[374168900,1753236643570,-460.0,0.0001843,2]
[374168902,1753236643579,-460.0,0.0001843,2]
[374168904,1753236643588,-377.76752399,0.0001843,2]
[374168906,1753236643598,-460.0,0.0001843,2]
[374168908,1753236643607,-460.0,0.0001843,2]
[374168910,1753236643616,-460.0,0.0001843,2]
[374168912,1753236643626,-460.0,0.0001843,2]
[374168914,1753236643635,-460.0,0.0001843,2]
[374168916,1753236643644,-460.0,0.0001843,2]
[374168918,1753236643653,-904.4,0.0001843,2]
[374168920,1753236643661,-460.0,0.0001843,2]
[374168922,1753236643670,-460.0,0.0001843,2]
[374168924,1753236643679,-363.96,0.0001843,2]
[374168926,1753236643688,-479.6497902,0.0001843,2]
[374168928,1753236643697,-460.0,0.0001843,2]
[374168930,1753236643706,-460.0,0.0001843,2]
[374168932,1753236643715,-521.57,0.0001843,2]
[374168934,1753236643723,-460.0,0.0001843,2]
[374168935,1753236643732,-973.72,0.0001843,2]
[374168937,1753236643741,-606.61,0.00018431,2]
[374168939,1753236643750,-470.39,0.00018431,2]
[374168941,1753236643759,-460.0,0.00018431,2]
[374168943,1753236643768,-3811.53480332,0.00018452,2]
[374168945,1753236643777,-150.0,0.000185,2]
[374168947,1753236643786,-1000.0,0.00018567,2]
[374168949,1753236643795,-726.59449159,0.0001866,2]
[374168951,1753236643804,-419.53007772,0.000187,2]
[374168953,1753236643814,-1024.07,0.000187,2]
[374168955,1753236643823,-460.0,0.00018701,2]
[374168957,1753236643833,-460.0,0.00018701,2]
[374168959,1753236643842,-1382.84,0.00018701,2]
[374168961,1753236643851,-460.0,0.00018701,2]
[374168963,1753236643860,-460.0,0.00018701,2]
[374168964,1753236643870,-1310.89,0.00018701,2]
[374168966,1753236643879,-946.48,0.00018701,2]
[374168968,1753236643889,-460.0,0.00018701,2]
[374168970,1753236643898,-460.0,0.00018701,2]
[374168972,1753236643907,-460.0,0.00018701,2]
[374168975,1753236643917,-2444.14,0.00018702,2]
[374168977,1753236643926,-805.37,0.00018702,2]
[374168979,1753236643935,-1065.45,0.00018702,2]
[374168981,1753236643945,-241.4840452,0.00018704,2]
[374168984,1753236643954,-3151.94,0.00018704,2]
[374168987,1753236643963,-254.17,0.00018704,2]
[374168989,1753236643972,-1209.66,0.00018704,2]
[374168991,1753236643981,-460.0,0.00018704,2]
[374168993,1753236643991,-460.0,0.00018704,2]
[374168995,1753236644000,-363.47867666,0.00018704,2]
[374168997,1753236644010,-460.0,0.00018704,2]
[374168999,1753236644019,-460.0,0.00018704,2]
[374169001,1753236644027,-460.0,0.00018704,2]
[374169003,1753236644036,-460.0,0.00018704,2]
[374169005,1753236644045,-460.0,0.00018704,2]
[374169007,1753236644055,-904.4,0.00018704,2]
[374169009,1753236644064,-460.0,0.00018704,2]
[374169011,1753236644073,-460.0,0.00018704,2]
[374169013,1753236644082,-460.0,0.00018704,2]
[374169015,1753236644091,-460.0,0.00018704,2]
[374169017,1753236644100,-521.57,0.00018704,2]
[374169019,1753236644110,-405.6,0.00018704,2]
[374169021,1753236644120,-973.72,0.00018704,2]
[374169023,1753236644129,-606.61,0.00018705,2]
[374169025,1753236644139,-470.39,0.00018705,2]
[374169027,1753236644148,-460.0,0.00018705,2]
[374169029,1753236644157,-500.0,0.00018708,2]
[374169031,1753236644168,-151.0,0.00018708,2]
[374169033,1753236644177,-280.06072247,0.00018708,2]
[374169035,1753236644186,-500.0,0.00018708,2]
[374169037,1753236644196,-151.0,0.00018708,2]
[374169039,1753236644206,-3811.53480332,0.00018728,2]
[374169041,1753236644215,-260.0,0.00018866,2]
[374169042,1753236644224,-3945.09543788,0.00018879,2]
[374169044,1753236644233,-2698.15314892,0.000189,2]
[374169046,1753236644246,-1024.07,0.00018974,2]
[374169048,1753236644255,-460.0,0.00018975,2]
[374169050,1753236644266,-460.0,0.00018975,2]
[374169052,1753236644274,-460.0,0.00018975,2]
[374169054,1753236644283,-1382.84,0.00018975,2]
[374169056,1753236644295,-460.0,0.00018975,2]
[374169058,1753236644304,-1310.89,0.00018975,2]
[374169060,1753236644314,-946.48,0.00018975,2]
[374169062,1753236644324,-460.0,0.00018975,2]
[374169064,1753236644333,-460.0,0.00018975,2]
[374169066,1753236644342,-460.0,0.00018975,2]
[374169068,1753236644351,-2444.14,0.00018976,2]
[374169070,1753236644359,-805.37,0.00018976,2]
[374169072,1753236644369,-1065.45,0.00018976,2]
[374169073,1753236644378,-3151.94,0.00018978,2]
[374169075,1753236644387,-1209.66,0.00018978,2]
[374169077,1753236644396,-460.0,0.00018978,2]
[374169079,1753236644405,-460.0,0.00018978,2]
[374169081,1753236644414,-194.07,0.00018978,2]
[374169083,1753236644424,-460.0,0.00018978,2]
[374169085,1753236644433,-460.0,0.00018978,2]
[374169087,1753236644442,-460.0,0.00018978,2]
[374169089,1753236644454,-460.0,0.00018978,2]
[374169091,1753236644464,-904.4,0.00018978,2]
[374169093,1753236644473,-460.0,0.00018978,2]
[374169095,1753236644484,-460.0,0.00018978,2]
[374169097,1753236644493,-460.0,0.00018978,2]
[374169099,1753236644503,-460.0,0.00018978,2]
[374169101,1753236644513,-521.57,0.00018978,2]
[374169103,1753236644523,-973.72,0.00018978,2]
[374169105,1753236644533,-606.61,0.00018979,2]
[374169107,1753236644545,-470.39,0.00018979,2]
[374169109,1753236644556,-460.0,0.00018979,2]